Cogmind - Beta 12 @@@ ROGUE MODE // 2023.03.06 @ 20:51:21 Player: Alex Result: Destroyed by D-53 Grenadier with Mini Grenade Launcher Performance ------------- Evolutions (0) 0 Regions Visited (2) 400 Robots Destroyed (40) 200 Value Destroyed (444) 444 Prototype IDs (0) 0 Alien Tech Used (0) 0 Bonus (-29) -29 TOTAL SCORE: 1015 Bonus ------- Friendly Fire -29 Cogmind --------- Core Integrity 0/250 Matter 300/300 Energy 122/125 System Corruption 13% Temperature Hot (266) Movement Flying (120) Ox1 Location -10/Mines Parts ------- > --- POWER (1) -------- Light Ion Engine > --- PROPULSION (2) --- Flight Unit > --- UTILITY (2) ------ Structural Scanner > --- WEAPON (2) ------- Beam Rifle > --- INVENTORY (5) ---- (None) Peak State ------------ > --- POWER ------------ Ion Engine > --- PROPULSION ------- Aluminum Leg Wheel > --- UTILITY ---------- Improved Heat Sink Structural Scanner > --- WEAPON ----------- Beam Rifle Beam Rifle > --- INVENTORY -------- Medium Laser Light Assault Rifle [Rating: 11] Favorites ----------- Power Ion Engine Engine Ion Engine Propulsion Wheel Leg Aluminum Leg Wheel Wheel Flight Unit Flight Unit Utility Structural Scanner Device Structural Scanner Weapon Beam Rifle Energy Gun Beam Rifle Ballistic Gun Light Assault Rifle Launcher Rocket Launcher Build | -11 -10 -10 ------- Run | Jun Mat Min Slots Evolved . | . . . Power . | . . . Propulsion . | . . . Utility . | . . . Weapon . | . . . Parts Attached 26 | 6 12 8 Power 5 | 1 3 1 Engine 5 | 1 3 1 Core . | . . . Reactor . | . . . Propulsion 11 | 3 2 6 Treads . | . . . Leg 5 | . 1 4 Wheel 4 | 3 1 . Hover . | . . . Flight 2 | . . 2 Utility 3 | . 3 . Device 3 | . 3 . Storage . | . . . Processor . | . . . Hackware . | . . . Protection . | . . . Artifact . | . . . Weapon 7 | 2 4 1 Energy Gun 5 | 1 3 1 Energy Cannon . | . . . Ballistic Gun 1 | 1 . . Ballistic Cannon . | . . . Launcher 1 | . 1 . Special Weapon . | . . . Impact Weapon . | . . . Slashing Weapon . | . . . Piercing Weapon . | . . . Special Melee Weapon . | . . . Unidentified Prototypes . | . . . Corrupted Parts 2 | . 2 . System Corruption 13 | . 13 . Parts Lost 4 | . 2 2 Power 1 | . 1 . Propulsion 2 | . 1 1 Utility . | . . . Weapon 1 | . . 1 Highest Loss Streak 2 | . 2 2 To Critical Strikes . | . . . Average Slot Usage (%) 87 | . 80 96 Engine 12 | . 11 14 Leg 13 | . 7 21 Wheel 11 | . 19 1 Flight 2 | . . 4 Device 18 | . 13 25 Energy Gun 21 | . 16 28 Ballistic Gun 4 | . 8 . Naked Turns . | . . . Heaviest Build 14 | 6 14 13 Greatest Support 20 | 20 20 20 Greatest Overweight (x) 2 | . 1 2 Average Overweight (x) . | . . . Largest Inventory Capacity 5 | 5 5 5 Average Capacity 5 | 5 5 5 Most Carried 5 | 5 3 5 Average Carried . | 1 . 1 Final Capacity 5 | 5 5 5 Final Carried 1 | . 1 . Class Distribution -------------------- 64% | Scavenger-Mutant 35% | Mutant Dominant Class ---------------- Scavenger-Mutant | -10/Materials Scavenger-Mutant | -10/Mines Resources | -11 -10 -10 ----------- Run | Jun Mat Min Matter Collected 591 | 274 218 99 Remotely . | . . . Salvage Created 1118 | 111 439 568 Parts 91 | 10 41 40 Haulers Intercepted 1 | . 1 . Recyclers Shooed 5 | . 1 4 Parts Field Recycled . | . . . Retrieved Matter . | . . . Parts Self-Destructed . | . . . Prevented . | . . . Kills | -11 -10 -10 ------- Run | Jun Mat Min Combat Hostiles Destroyed 10 | 1 4 5 Guns 10 | 1 4 5 Classes Destroyed 9 | 2 5 2 Worker 11 | . 4 7 Builder 6 | . 5 1 Tunneler 5 | 3 1 1 Hauler 1 | . 1 . Recycler 4 | . . 4 Operator 1 | . 1 . Watcher 2 | . 2 . Swarmer 3 | . . 3 Grunt 7 | 1 4 2 Best Kill Streak 17 | 4 6 17 Combat Bots Only 3 | 1 3 3 Max Kills in Single Turn 2 | 1 2 2 Gunslinging 1 | . . 1 Exploded . | . . . Melee . | . . . Uniques/NPCs Destroyed . | . . . Combat | -11 -10 -10 -------- Run | Jun Mat Min Damage Taken 727 | 91 372 264 Core 263 | 57 164 42 Absorbed by Shields . | . . . Core Remaining (%) 77 | 77 . . Volleys Fired 110 | 14 55 41 Largest 2 | 2 2 2 Hottest 112 | 70 112 112 Shots Fired 209 | 28 103 78 Gun 205 | 28 99 78 Cannon . | . . . Launcher 4 | . 4 . Special . | . . . Kinetic 47 | 14 33 . Thermal 158 | 14 66 78 Explosive 4 | . 4 . Electromagnetic . | . . . Robot Hit Streak 19 | 8 19 9 Robot Miss Streak 5 | 1 5 5 Penetration Max . | . . . Secondary Targets 1 | . . 1 Max Gunslinging Chain 1 | . . 1 Shots Hit Robots 117 | 22 56 39 Core Hits 57 | 9 25 23 Critical Kills . | . . . Critical Parts Destroyed . | . . . Critical Strikes 10 | 1 2 7 Burn 10 | 1 2 7 Melee Attacks . | . . . Impact . | . . . Slashing . | . . . Piercing . | . . . Sneak Attacks . | . . . Combat Hostiles . | . . . Follow-up Attacks . | . . . Damage Inflicted 1557 | 227 832 498 Guns 1368 | 227 643 498 Cannons . | . . . Explosions 189 | . 189 . Melee . | . . . Ramming . | . . . Kinetic 239 | 79 160 . Thermal 1129 | 148 483 498 Explosive 189 | . 189 . Electromagnetic . | . . . Impact . | . . . Slashing . | . . . Piercing . | . . . Highest Corruption 13 | . 13 13 Average Corruption 12 | . 12 13 Corruption Purged . | . . . Corruption Blocked . | . . . Effects 25 | . 8 17 Message Errors 6 | . 3 3 Matter Fused 7 | . 4 3 Energy Discharges 2 | . . 2 Parts Fused 1 | . . 1 Data Loss (minor) 4 | . 1 3 Data Loss (major) 1 | . . 1 Misfires 1 | . . 1 Weapon Failures 3 | . . 3 Overload Shots . | . . . Overflow Damage . | . . . Projectiles . | . . . Explosions . | . . . Melee . | . . . Knockbacks . | . . . Impact . | . . . Kinetic . | . . . Secondary . | . . . Self-Inflicted Damage . | . . . Shots . | . . . Rammed . | . . . Targets Rammed . | . . . Kicked . | . . . Crushed . | . . . Highest Temperature 388 | 136 388 298 Average Temperature 94 | 59 113 79 Received Heat Transfer 279 | 48 186 45 Effects 2 | . 2 . Interference 2 | . 2 . Siege Activations . | . . . Robots Corrupted . | . . . Combat Hostiles . | . . . Parts Fried . | . . . Impact Corruptions . | . . . Robots Melted . | . . . Combat Hostiles . | . . . Parts Melted 9 | . 6 3 Heat Transferred 3765 | 518 1480 1767 Parts Sabotaged . | . . . Parts Stolen . | . . . Parts Stripped . | . . . Power Chain Reactions . | . . . Missiles Intercepted . | . . . Alert | -11 -10 -10 ------- Run | Jun Mat Min Peak Influence 249 | 35 249 210 Initial 25 | . 22 25 Average 93 | 15 121 86 Maximum Alert Level 1 | . 1 1 Low Security (%) 86 | 100 86 81 Level 1 13 | . 13 18 Level 2 . | . . . Level 3 . | . . . Level 4 . | . . . Level 5 . | . . . High Security . | . . . Max Security . | . . . Squads Dispatched 2 | . 2 . Investigation 2 | . 2 . Extermination . | . . . Reinforcement . | . . . Assault . | . . . Garrison . | . . . Intercept . | . . . Searches Triggered . | . . . Construction Impeded . | . . . Haulers Reinforced . | . . . Active Scanning Responses . | . . . Cargo Convoy Interrupts . | . . . Stealth | -11 -10 -10 --------- Run | Jun Mat Min Distress Signals 1 | . 1 . Communications Jammed . | . . . Distress Signals . | . . . Times Spotted 18 | 1 10 7 Peak Tracking Total 5 | 1 5 3 Tactical Retreats . | . . . Traps | -11 -10 -10 ------- Run | Jun Mat Min Traps Triggered . | . . . Indirectly . | . . . Trap Hack Attempts . | . . . Triggered . | . . . Disarmed 1 | . 1 . Reprogrammed . | . . . Reused . | . . . Traps Extracted . | . . . Installed . | . . . Triggered . | . . . Machines | -11 -10 -10 ---------- Run | Jun Mat Min Machines Disabled . | . . . Max in Single Turn . | . . . Machines Repaired . | . . . Machines Sabotaged . | . . . Overloaded Fab Kills . | . . . Hacking | -11 -10 -10 --------- Run | Jun Mat Min Machines Accessed 4 | . 4 . Terminals 4 | . 4 . Fabricators . | . . . Repair Stations . | . . . Recycling Units . | . . . Scanalyzers . | . . . Garrison Access . | . . . Total Hacks 15 | . 15 . Successful 9 | . 9 . Failed 6 | . 6 . Catastrophic 2 | . 2 . Database Lockouts . | . . . Manual . | . . . Terminals 15 | . 15 . Fabricators . | . . . Repair Stations . | . . . Recycling Units . | . . . Scanalyzers . | . . . Garrison Access . | . . . Terminal Hacks 9 | . 9 . Record 7 | . 7 . Alert Level 1 | . 1 . Disarm Traps 1 | . 1 . Fabricator Hacks . | . . . Repair Station Hacks . | . . . Recycling Unit Hacks . | . . . Scanalyzer . | . . . Garrison Access Hacks . | . . . Unauthorized Hacks . | . . . Terminals . | . . . Fabricators . | . . . Repair Stations . | . . . Recycling Units . | . . . Scanalyzers . | . . . Garrison Access . | . . . Data Cores Recovered 1 | . 1 . Used . | . . . Hacking Detections 4 | . 4 . Full Trace Events 4 | . 4 . Feedback Events . | . . . Feedback Blocked . | . . . Robot Schematics Acquired . | . . . Robots Built . | . . . Authchips . | . . . Time . | . . . Total Robot Build Rating . | . . . Part Schematics Acquired . | . . . Parts Built . | . . . Authchips . | . . . Time . | . . . Total Part Build Rating . | . . . Parts Repaired . | . . . Time . | . . . Parts Recycled . | . . . Recycled Matter . | . . . Retrieved Matter . | . . . Retrieved Components . | . . . Parts Scanalyzed . | . . . Part Schematics Acquired . | . . . Parts Damaged . | . . . Bothacking | -11 -10 -10 ------------ Run | Jun Mat Min Used RIF Installer . | . . . Robots Hacked . | . . . Non-combat . | . . . Combat . | . . . Robot Hacks Applied . | . . . Relay Couplers Released . | . . . Fabnet Peak Effective % . | . . . Robots Rewired . | . . . Allies Hacked . | . . . Hacks Repelled . | . . . Allies | -11 -10 -10 -------- Run | Jun Mat Min Total Allies . | . . . Largest Group . | . . . Highest-Rated Group . | . . . Highest-Rated Ally . | . . . Total Orders . | . . . Ally Attacks . | . . . Total Damage . | . . . Kills . | . . . Allies Corrupted . | . . . Allies Melted . | . . . Intel | -11 -10 -10 ------- Run | Jun Mat Min Robot Analysis Total . | . . . Derelict Logs Recovered . | . . . Drone Launches . | . . . Drone Recoveries . | . . . Exploration | -11 -10 -10 ------------- Run | Jun Mat Min Turns Passed 894 | 122 428 344 Spaces Moved 578 | 111 275 192 Core 63 | 63 . . Treads . | . . . Legs 135 | . 6 129 Wheels 333 | 48 269 16 Hover . | . . . Flight 47 | . . 47 Fastest Speed 37 | 50 80 37 Average Speed 85 | 62 84 100 Slowest Speed 200 | 80 120 200 Overloaded Moves . | . . . Propulsion Burnouts . | . . . Robots Hopped . | . . . Cave-ins Triggered . | . . . Exploration Rate (%) 30 | 7 36 48 Regions Visited 2 Branch Regions 1 Pre-discovered Areas 1 | . . 1 Known Exits Taken . | . . . Unknown Exits Taken 2 | 1 1 . Scrap Searched 1 | . . 1 Spaces Dug . | . . . Terrain Destroyed 25 | . 25 . Melee . | . . . Projectile . | . . . AOE 25 | . 25 . Terrain Rammed . | . . . Walls Destroyed . | . . . Machines Disabled . | . . . Actions | -11 -10 -10 --------- Run | Jun Mat Min Total 776 | 137 372 267 Wait 21 | . 14 7 Move 576 | 110 274 192 Hop . | . . . Pick Up 25 | 6 11 8 Fast Attach . | . . . Attach 12 | 5 5 2 Detach 1 | . . 1 Swap 14 | 1 7 6 Drop 17 | 1 6 10 Fire 110 | 14 55 41 Melee . | . . . Ram . | . . . Kick . | . . . Crush . | . . . Escape Stasis . | . . . Rewire . | . . . Trap . | . . . Miscellaneous . | . . . Route ------- -11/Junkyard -10/Materials -10/Mines (discovered 1 exit: [*Mat]) History --------- Turn | Location | Event 2 | -11/Junkyard | Met Revision 17 34 | -11/Junkyard | Discovered new exit (range 8) 123 | -11/Junkyard | Entered Materials 257 | -10/Materials | Discovered new exit (range 16) 275 | -10/Materials | Core integrity fell below 50% 309 | -10/Materials | Core integrity fell below 20% 316 | -10/Materials | Build established: Mutant 355 | -10/Materials | System corruption reached 10% 551 | -10/Materials | Entered Mines 552 | -10/Mines | Learned location of Storage (-8) 622 | -10/Mines | Build established: Scavenger-Mutant 881 | -10/Mines | Discovered new exit (range 14) 888 | -10/Mines | Assembled infested the area 895 | -10/Mines | Destroyed by D-53 Grenadier with Mini Grenade Launcher Last Messages --------------- 00847_ System corrupted: Component data lost. 00848_ Dropped Ion Engine. [Achievement: Hey, That's Mine!] 00855_ R-06 Scavenger suffers critical hit (Burn). 00857_ Acquired 10 matter. 00863_ System corrupted: Energy discharge (-26). 00875_ K-01 Serf destroyed. 00881_ EXIT=FOUND 00882_ System corrupted: FCS attempts to trigger Beam Rifle. 00882_ System corrupted: Beam Rifle misfires. 00888_ ALERT: Infestation in the mines, dispatching Demolisher response squad. 00889_ K-01 Serf suffers critical hit (Burn). 00890_ C-30 ARC bursts open, deploying its payload. 00890_ D-53 Grenadier unfolds itself. 00890_ K-01 Serf destroyed. 00893_ Flight Unit destroyed. 00895_ The unstable cave ceiling collapses. 00895_ Sml. Laser destroyed. [Achievement: First Step to Greatness] Map ----- +----------------------------------------------------+ | | | | | | | | | | | | | | | | | | | | | | | | | ?????????????????????????????????????????????????? | | ?????????????????????????????????????????????????? | | ?????????????????????????????????????????????????? | | ????????????????????????####?###?????????????????? | | ????????????????????????####?###?????????????????? | | ??????????????????####### ##?????????????????? | | ??????????????########### """ ##?????????????????? | | ?????????????####### ### """ ####???????????????? | | ?????????????### ## ## """=####???????????????? | | ?????????????## !%! ???????????????? | | ?????????????## = ##?????????????????? | | ?????????????### < d #### ##?????????????? | | ??????????????## d% # ### ##?????????????? | | ??????????????## @ ##?????????????? | | ??????????????## #####?????????????? | | ??????????????### #####?????????????? | | ??????????????### ###????????????????? | | ???????????????## # ###????????????????? | | ???????????????### ## ###?????????????????? | | ??????????????? #### # # # ##?????????????????? | | ????????????????##### ########?????????????????? | | ??????????????????#### ########?????????????????? | | ???????????????????### ##???????????????????????? | | ????????????????????## ##???????????????????????? | | ????????????????????## ##???????????????????????? | | ????????????????????## #######??????????????????? | | ????????????????????## ########?????????????????? | | ???????????????####### ### ###?????????????????? | | ??????????????######## ## ###????????????????? | | ?????????????#### ## # ###????????????????? | | ?????????????### %# ##????????????????? | | ????????????### *%! ##????????????????? | | ???????????### ##= ###????????????????? | | ???????????## ##### #####????????????????? | | ???????????## #######==**#####?????????????????? | | ???????????## ##??###=%!=#####?????????????????? | | ???????????### ??????##=*%[#####?????????######??? | | ???????????### ??????## ]% %!=##????????########?? | +----------------------------------------------------+ Best States ------------- Heat Dissipation 39 Energy Generation 10 Energy Capacity 250 Matter Stores 300 Matter Capacity 300 Sight Range 16 Terrain Scan Density 10 Evasion (%) 62 Item Schematics ----------------- None Robot Schematics ------------------ None Fabricated ------------ Nothing Alien Tech Used ----------------- None Achievements -------------- First Step to Greatness Hey, That's Mine! Challenges ------------ None Game ------ Seed FlightNullStripper Manual? 0 Play Time 00:18:59 Cumulative 0.5 hours Start 2023.03.06 @ 20:34:22 End 2023.03.06 @ 20:51:21 Sessions 1 Manual Loads 0 Difficulty Rogue Special Mode None Game No. 2 Rogue 2 Adventurer 0 Explorer 0 Win Type - Total 0 Types 0/0/0/0/0/0/0/0/0 Lore% 1 Gallery% 2 Achievement% 4 Wizard Run 0 Options --------- ASCII 0 Keyboard 0 Movement Mouse Keybinds 0 Fullscreen 0 Font 32/SmallcapsGlow Map View 76x50 Tactical HUD 1 Map Filters NONE Filters NONE Steam 1 RUN: c82b532b-9d7f-4ade-bf11-8b8e0390ce47